Cogmind - Beta 11.1 @@@ ROGUE MODE // 2022.07.08 @ 16:10:18 Player: Calazard Result: Destroyed by P-80 Master with Gamma Rifle Performance ------------- Evolutions (9) 4500 Regions Visited (14) 2800 Robots Destroyed (0) 0 Value Destroyed (0) 0 Prototype IDs (7) 140 Alien Tech Used (0) 0 Bonus (8839) 8839 TOTAL SCORE: 16279 Bonus ------- Pacifist 7906 Follower Combat Kills 933 Cogmind --------- Core Integrity 0/1600 Matter 266/300 Energy 25/100 System Corruption 16% Temperature Cool (2) Movement Hovering (70) Location -1/Access Parts ------- > --- POWER (3) -------- (None) > --- PROPULSION (6) --- Improved Gyrokinetic Inverter > --- UTILITY (14) ----- Visual Processing Unit System Shield > --- WEAPON (2) ------- (None) > --- INVENTORY (5) ---- (None) Peak State ------------ > --- POWER ------------ Quantum Reactor Quantum Reactor Light Quantum Reactor > --- PROPULSION ------- Improved Gyrokinetic Inverter Improved Gyrokinetic Inverter Improved Gyrokinetic Inverter Improved Gyrokinetic Inverter Improved Gyrokinetic Inverter Improved Gyrokinetic Inverter > --- UTILITY ---------- Advanced Power Amplifier Visual Processing Unit ECM Suite Hacking Suite Improved Hacking Suite System Shield Improved System Shield > --- WEAPON ----------- (None) > --- INVENTORY -------- Advanced Heat Sink [Rating: 95] Favorites ----------- Power Light Deuterium Engine Engine Light Deuterium Engine Power Core Micro Fission Core Reactor Light Antimatter Reactor Propulsion Improved Cesium-ion Thruster Hover Unit Improved Gyrokinetic Inverter Flight Unit Improved Cesium-ion Thruster Utility Hacking Suite Device Advanced Power Amplifier Processor Visual Processing Unit Hackware Hacking Suite Protection Improved Light Armor Plating Weapon None Build | -11 -10 -9 -9 -8 -7 -6 -6 -6 -5 -4 -4 -3 -2 -1 ------- Run | Scr Mat Mat Min Mat Fac Fac Low Low Fac Fac Ext Res Res Acc Slots Evolved 18 | . . 2 . 2 2 2 . . 2 2 . 2 2 2 Power 2 | . . . . . 1 . . . 1 . . . . . Propulsion 4 | . . 1 . 1 1 . . . . . . 1 . . Utility 12 | . . 1 . 1 . 2 . . 1 2 . 1 2 2 Weapon . | . . . . . . . . . . . . . . . Parts Attached 86 | . . 4 . 8 5 6 3 . 12 12 7 7 5 17 Power 24 | . . 1 . . 2 3 2 . 3 3 2 2 1 5 Engine 7 | . . 1 . . 2 1 2 . . 1 . . . . Core 11 | . . . . . . 2 . . 3 2 1 2 1 . Reactor 6 | . . . . . . . . . . . 1 . . 5 Propulsion 33 | . . 3 . 4 1 . . . 5 6 1 2 2 9 Treads . | . . . . . . . . . . . . . . . Leg . | . . . . . . . . . . . . . . . Wheel . | . . . . . . . . . . . . . . . Hover 12 | . . 3 . . . . . . . . . . . 9 Flight 21 | . . . . 4 1 . . . 5 6 1 2 2 . Utility 29 | . . . . 4 2 3 1 . 4 3 4 3 2 3 Device 18 | . . . . 1 1 2 1 . 2 2 3 2 1 3 Storage . | . . . . . . . . . . . . . . . Processor 2 | . . . . 1 1 . . . . . . . . . Hackware 8 | . . . . 1 . 1 . . 2 1 1 1 1 . Protection 1 | . . . . 1 . . . . . . . . . . Artifact . | . . . . . . . . . . . . . . . Weapon . | . . . . . . . . . . . . . . . Energy Gun . | . . . . . . . . . . . . . . . Energy Cannon . | . . . . . . . . . . . . . . . Ballistic Gun . | . . . . . . . . . . . . . . . Ballistic Cannon . | . . . . . . . . . . . . . . . Launcher . | . . . . . . . . . . . . . . . Special Weapon . | . . . . . . . . . . . . . . . Impact Weapon . | . . . . . . . . . . . . . . . Slashing Weapon . | . . . . . . . . . . . . . . . Piercing Weapon . | . . . . . . . . . . . . . . . Special Melee Weapon . | . . . . . . . . . . . . . . . Unidentified Prototypes 2 | . . 1 . 1 . . . . . . . . . . Parts Lost 40 | . . . . . . 2 . . 2 1 5 2 4 24 Power 8 | . . . . . . 2 . . . . . 1 . 5 Propulsion 18 | . . . . . . . . . 2 . 4 1 3 8 Utility 14 | . . . . . . . . . . 1 1 . 1 11 Weapon . | . . . . . . . . . . . . . . . Highest Loss Streak 17 | . . . . . . 2 . . 1 1 2 2 4 17 To Critical Strikes . | . . . . . . . . . . . . . . . Average Slot Usage (%) 73 | . . 37 44 70 77 86 81 86 86 88 76 64 65 46 Engine 4 | . . 9 11 9 15 12 1 6 5 4 . . . . Core 4 | . . . . . . . 6 6 11 10 7 . 4 . Reactor 1 | . . . . . . . . . . . 4 3 . 3 Hover 1 | . . 28 33 5 . . . . . . . . . 8 Flight 22 | . . . . 28 31 33 33 33 28 25 18 13 8 2 Device 13 | . . . . 5 7 20 20 20 11 14 12 14 17 9 Processor 6 | . . . . 8 14 10 6 6 5 5 5 4 4 4 Hackware 17 | . . . . 6 7 8 13 13 22 26 26 28 29 18 Naked Turns 61 | . 58 3 . . . . . . . . . . . . Heaviest Build 60 | . . 5 5 8 13 17 22 22 30 27 35 18 21 60 Greatest Support 72 | 3 3 24 24 33 30 30 30 24 30 32 34 36 34 72 Greatest Overweight (x) 1 | . . . . . . . . . 1 . 1 . . . Average Overweight (x) . | . . . . . . . . . . . . . . . Largest Inventory Capacity 5 | 5 5 5 5 5 5 5 5 5 5 5 5 5 5 5 Average Capacity 5 | 5 5 5 5 5 5 5 5 5 5 5 5 5 5 5 Most Carried 5 | 2 2 5 5 5 5 4 5 5 5 5 5 5 4 5 Average Carried 4 | 1 2 4 5 4 3 3 4 5 4 4 4 3 2 3 Final Capacity 5 | 5 5 5 5 5 5 5 5 5 5 5 5 5 5 5 Final Carried 5 | 2 2 5 5 4 5 4 5 5 5 5 5 4 4 . Class Distribution -------------------- 31% | Hacker-Sprinter 16% | Scout 15% | Hacker-Scout 10% | Wizard-Mutant 6% | Wizard-Sprinter 5% | Hacker-Mutant 5% | Mutant 3% | Commander-Sprinter 3% | Sprinter Dominant Class ---------------- Mutant | -10/Materials Mutant | -9/Materials Mutant | -9/Mines Sprinter | -8/Materials Scout | -7/Factory Scout | -6/Factory Hacker-Scout | -6/Lower Caves Hacker-Sprinter | -6/Lower Caves Hacker-Sprinter | -5/Factory Hacker-Sprinter | -4/Factory Hacker-Sprinter | -4/Extension Wizard-Sprinter | -3/Research Wizard-Mutant | -2/Research Wizard-Mutant | -1/Access Resources | -11 -10 -9 -9 -8 -7 -6 -6 -6 -5 -4 -4 -3 -2 -1 ----------- Run | Scr Mat Mat Min Mat Fac Fac Low Low Fac Fac Ext Res Res Acc Matter Collected 854 | 200 . . . . . . 240 . . . 293 19 16 86 Remotely . | . . . . . . . . . . . . . . . Salvage Created . | . . . . . . . . . . . . . . . Parts . | . . . . . . . . . . . . . . . Haulers Intercepted . | . . . . . . . . . . . . . . . Recyclers Shooed . | . . . . . . . . . . . . . . . Parts Field Recycled . | . . . . . . . . . . . . . . . Retrieved Matter . | . . . . . . . . . . . . . . . Parts Self-Destructed 11 | . . . . . . . 11 . . . . . . . Prevented 1 | . . . . . . . 1 . . . . . . . Kills | -11 -10 -9 -9 -8 -7 -6 -6 -6 -5 -4 -4 -3 -2 -1 ------- Run | Scr Mat Mat Min Mat Fac Fac Low Low Fac Fac Ext Res Res Acc Combat Hostiles Destroyed . | . . . . . . . . . . . . . . . Classes Destroyed . | . . . . . . . . . . . . . . . Best Kill Streak . | . . . . . . . . . . . . . . . Combat Bots Only . | . . . . . . . . . . . . . . . Max Kills in Single Turn . | . . . . . . . . . . . . . . . Gunslinging . | . . . . . . . . . . . . . . . Exploded . | . . . . . . . . . . . . . . . Melee . | . . . . . . . . . . . . . . . Uniques/NPCs Destroyed . | . . . . . . . . . . . . . . . Combat | -11 -10 -9 -9 -8 -7 -6 -6 -6 -5 -4 -4 -3 -2 -1 -------- Run | Scr Mat Mat Min Mat Fac Fac Low Low Fac Fac Ext Res Res Acc Damage Taken 4972 | . 43 58 . 216 109 192 84 17 263 106 308 248 343 2985 Core 2160 | . 43 14 . 65 50 57 23 . 43 . 42 102 109 1612 Absorbed by Shields 20 | . . . . . . . . . . . 20 . . . Regen/Repaired (Parts) 65 | . . . . . . . . . . 65 . . . . Core Remaining (%) 92 | 100 82 . 96 88 92 . . 90 95 . 96 92 92 . Volleys Fired . | . . . . . . . . . . . . . . . Largest . | . . . . . . . . . . . . . . . Hottest . | . . . . . . . . . . . . . . . Shots Fired . | . . . . . . . . . . . . . . . Gun . | . . . . . . . . . . . . . . . Cannon . | . . . . . . . . . . . . . . . Launcher . | . . . . . . . . . . . . . . . Special . | . . . . . . . . . . . . . . . Kinetic . | . . . . . . . . . . . . . . . Thermal . | . . . . . . . . . . . . . . . Explosive . | . . . . . . . . . . . . . . . Electromagnetic . | . . . . . . . . . . . . . . . Robot Hit Streak . | . . . . . . . . . . . . . . . Robot Miss Streak . | . . . . . . . . . . . . . . . Penetration Max . | . . . . . . . . . . . . . . . Secondary Targets . | . . . . . . . . . . . . . . . Shots Hit Robots . | . . . . . . . . . . . . . . . Core Hits . | . . . . . . . . . . . . . . . Critical Kills . | . . . . . . . . . . . . . . . Critical Parts Destroyed . | . . . . . . . . . . . . . . . Critical Strikes . | . . . . . . . . . . . . . . . Melee Attacks . | . . . . . . . . . . . . . . . Impact . | . . . . . . . . . . . . . . . Slashing . | . . . . . . . . . . . . . . . Piercing . | . . . . . . . . . . . . . . . Sneak Attacks . | . . . . . . . . . . . . . . . Combat Hostiles . | . . . . . . . . . . . . . . . Follow-up Attacks . | . . . . . . . . . . . . . . . Damage Inflicted 1 | . . . . . . . . . . . . . . 1 Guns . | . . . . . . . . . . . . . . . Cannons . | . . . . . . . . . . . . . . . Explosions . | . . . . . . . . . . . . . . . Melee . | . . . . . . . . . . . . . . . Ramming 1 | . . . . . . . . . . . . . . 1 Kinetic . | . . . . . . . . . . . . . . . Thermal . | . . . . . . . . . . . . . . . Explosive . | . . . . . . . . . . . . . . . Electromagnetic . | . . . . . . . . . . . . . . . Impact . | . . . . . . . . . . . . . . . Slashing . | . . . . . . . . . . . . . . . Piercing . | . . . . . . . . . . . . . . . Highest Corruption 15 | . . . . . . . . . . . . . . 15 Average Corruption 9 | . . . . . . . . . . . . . . 9 Corruption Purged . | . . . . . . . . . . . . . . . Corruption Blocked . | . . . . . . . . . . . . . . . Effects 6 | . . . . . . . . . . . . . . 6 Matter Fused 1 | . . . . . . . . . . . . . . 1 Heat Flow Errors 2 | . . . . . . . . . . . . . . 2 Data Loss (minor) 1 | . . . . . . . . . . . . . . 1 Misdirections 2 | . . . . . . . . . . . . . . 2 Overload Shots . | . . . . . . . . . . . . . . . Overflow Damage . | . . . . . . . . . . . . . . . Projectiles . | . . . . . . . . . . . . . . . Explosions . | . . . . . . . . . . . . . . . Melee . | . . . . . . . . . . . . . . . Knockbacks . | . . . . . . . . . . . . . . . Impact . | . . . . . . . . . . . . . . . Kinetic . | . . . . . . . . . . . . . . . Secondary . | . . . . . . . . . . . . . . . Self-Inflicted Damage . | . . . . . . . . . . . . . . . Shots . | . . . . . . . . . . . . . . . Rammed 1 | . . . . . . . . . . . . . . 1 Targets Rammed 1 | . . . . . . . . . . . . . . 1 Kicked . | . . . . . . . . . . . . . . . Crushed . | . . . . . . . . . . . . . . . Highest Temperature 290 | . . . . 107 290 . . . 13 14 21 . . 231 Average Temperature 67 | . . . . 48 83 . . . 6 6 7 . . 109 Received Heat Transfer 474 | . 24 . . 72 12 75 30 . 72 27 84 51 9 18 Effects 1 | . . . . . 1 . . . . . . . . . Energy Bleed 1 | . . . . . 1 . . . . . . . . . Siege Activations . | . . . . . . . . . . . . . . . Robots Corrupted . | . . . . . . . . . . . . . . . Combat Hostiles . | . . . . . . . . . . . . . . . Parts Fried . | . . . . . . . . . . . . . . . Impact Corruptions . | . . . . . . . . . . . . . . . Robots Melted . | . . . . . . . . . . . . . . . Combat Hostiles . | . . . . . . . . . . . . . . . Parts Melted . | . . . . . . . . . . . . . . . Heat Transferred . | . . . . . . . . . . . . . . . Parts Sabotaged . | . . . . . . . . . . . . . . . Parts Stolen . | . . . . . . . . . . . . . . . Parts Stripped . | . . . . . . . . . . . . . . . Power Chain Reactions . | . . . . . . . . . . . . . . . Missiles Intercepted . | . . . . . . . . . . . . . . . Alert | -11 -10 -9 -9 -8 -7 -6 -6 -6 -5 -4 -4 -3 -2 -1 ------- Run | Scr Mat Mat Min Mat Fac Fac Low Low Fac Fac Ext Res Res Acc Peak Influence 539 | . 44 153 65 153 163 159 . . 153 157 539 295 99 184 Initial 282 | . . 18 59 25 76 79 . . 6 70 76 282 . 44 Average 126 | . 8 51 63 80 70 89 . . 36 112 271 227 44 69 Maximum Alert Level 2 | . . . . . . . . . . . 2 1 . . Low Security (%) 81 | 100 100 100 100 100 100 100 . . 100 100 40 30 100 100 Level 1 11 | . . . . . . . . . . . 24 69 . . Level 2 6 | . . . . . . . . . . . 34 . . . Level 3 . | . . . . . . . . . . . . . . . Level 4 . | . . . . . . . . . . . . . . . Level 5 . | . . . . . . . . . . . . . . . High Security . | . . . . . . . . . . . . . . . Max Security . | . . . . . . . . . . . . . . . Squads Dispatched 15 | . 2 2 . 1 1 1 . . . 1 1 2 3 1 Investigation 6 | . 1 . . . 1 . . . . 1 1 . 1 1 Extermination . | . . . . . . . . . . . . . . . Reinforcement 9 | . 1 2 . 1 . 1 . . . . . 2 2 . Assault . | . . . . . . . . . . . . . . . Garrison . | . . . . . . . . . . . . . . . Intercept . | . . . . . . . . . . . . . . . Searches Triggered . | . . . . . . . . . . . . . . . Construction Impeded . | . . . . . . . . . . . . . . . Haulers Reinforced . | . . . . . . . . . . . . . . . Active Scanning Responses . | . . . . . . . . . . . . . . . Cargo Convoy Interrupts . | . . . . . . . . . . . . . . . Stealth | -11 -10 -9 -9 -8 -7 -6 -6 -6 -5 -4 -4 -3 -2 -1 --------- Run | Scr Mat Mat Min Mat Fac Fac Low Low Fac Fac Ext Res Res Acc Distress Signals 7 | . . 1 . 3 2 . . . . . . . . 1 Communications Jammed . | . . . . . . . . . . . . . . . Distress Signals . | . . . . . . . . . . . . . . . Times Spotted 157 | . 7 12 . 12 10 6 6 1 15 5 33 17 14 19 Peak Tracking Total 13 | . 6 12 . 13 7 5 5 1 9 4 12 12 9 9 Tactical Retreats 20 | . . 1 . 3 2 1 1 . 2 2 2 . 2 4 Traps | -11 -10 -9 -9 -8 -7 -6 -6 -6 -5 -4 -4 -3 -2 -1 ------- Run | Scr Mat Mat Min Mat Fac Fac Low Low Fac Fac Ext Res Res Acc Traps Triggered 7 | . . . . . . . . . . . 4 1 1 1 Indirectly . | . . . . . . . . . . . . . . . Trap Hack Attempts . | . . . . . . . . . . . . . . . Triggered . | . . . . . . . . . . . . . . . Disarmed 2 | . . . . . . . . . . . 2 . . . Reprogrammed . | . . . . . . . . . . . . . . . Reused . | . . . . . . . . . . . . . . . Traps Extracted . | . . . . . . . . . . . . . . . Installed . | . . . . . . . . . . . . . . . Triggered . | . . . . . . . . . . . . . . . Machines | -11 -10 -9 -9 -8 -7 -6 -6 -6 -5 -4 -4 -3 -2 -1 ---------- Run | Scr Mat Mat Min Mat Fac Fac Low Low Fac Fac Ext Res Res Acc Machines Disabled 2 | . . . . . . . . . . . 2 . . . Max in Single Turn . | . . . . . . . . . . . . . . . Garrison Access 6 | . . . . 1 . . . . 1 2 . . 1 1 Energy Cycler 1 | . . . . . . . . . . . 1 . . . Machines Sabotaged . | . . . . . . . . . . . . . . . Garrisons Compromised . | . . . . . . . . . . . . . . . Overloaded Fab Kills . | . . . . . . . . . . . . . . . Hacking | -11 -10 -9 -9 -8 -7 -6 -6 -6 -5 -4 -4 -3 -2 -1 --------- Run | Scr Mat Mat Min Mat Fac Fac Low Low Fac Fac Ext Res Res Acc Machines Accessed 49 | . 2 . 1 3 4 2 2 1 4 9 10 5 4 2 Terminals 30 | . 2 . 1 2 3 1 . . 3 3 10 3 2 . Fabricators 5 | . . . . . 1 1 . . . 1 . . 1 1 Repair Stations 2 | . . . . . . . . . . 1 . 1 . . Recycling Units 1 | . . . . . . . . . . . . 1 . . Scanalyzers 2 | . . . . . . . . . . 2 . . . . Garrison Access 6 | . . . . 1 . . . . 1 2 . . 1 1 Total Hacks 129 | . 5 . 3 5 7 3 8 5 14 19 25 16 16 3 Successful 81 | . 1 . 1 3 2 1 8 5 7 13 16 9 13 2 Failed 48 | . 4 . 2 2 5 2 . . 7 6 9 7 3 1 Catastrophic 8 | . 1 . 1 1 1 . . . 2 . 1 . . 1 Database Lockouts . | . . . . . . . . . . . . . . . Manual 59 | . 5 . 3 3 7 2 . . 9 4 7 10 9 . Terminals 86 | . 5 . 3 3 6 2 . . 12 7 25 11 12 . Fabricators 10 | . . . . . 1 1 . . . 3 . . 3 2 Repair Stations 5 | . . . . . . . . . . 2 . 3 . . Recycling Units 2 | . . . . . . . . . . . . 2 . . Scanalyzers 5 | . . . . . . . . . . 5 . . . . Garrison Access 8 | . . . . 2 . . . . 2 2 . . 1 1 Terminal Hacks 56 | . 1 . 1 2 1 . 8 5 4 5 16 4 9 . Record 15 | . . . . . . . 7 5 . 1 . 1 1 . Prototype ID Bank 2 | . . . . . . . . . 1 . . . 1 . Open Door 8 | . . . . . . . 1 . . . 7 . . . Level Access Points 7 | . . . . 1 1 . . . 1 1 1 1 1 . Branch Access Points 3 | . . . . . . . . . . . 1 1 1 . Terminal Index 1 | . . . . . . . . . . . . . 1 . Scanalyzer Index 1 | . . . . . . . . . . 1 . . . . Unreport Threat 4 | . . . . . . . . . . . 1 1 2 . Locate Traps 1 | . . . . . . . . . . . 1 . . . Disarm Traps 2 | . . . . . . . . . . . 2 . . . Reprogram Traps 1 | . . . . . . . . . . . . . 1 . Patrol Status 1 | . . . . . . . . . . . . . 1 . Recall Investigation 1 | . . . . . . . . . . . 1 . . . Recall Extermination 1 | . . . . . . . . . . . 1 . . . Zone Layout 8 | . 1 . 1 1 . . . . 2 2 1 . . . Fabricator Hacks 7 | . . . . . 1 1 . . . 2 . . 2 1 Load Schematic 2 | . . . . . . . . . . 1 . . 1 . Build 5 | . . . . . 1 1 . . . 1 . . 1 1 Repair Station Hacks 3 | . . . . . . . . . . 2 . 1 . . Scan Component 2 | . . . . . . . . . . 1 . 1 . . Repair 1 | . . . . . . . . . . 1 . . . . Recycling Unit Hacks 2 | . . . . . . . . . . . . 2 . . Report Inventory 1 | . . . . . . . . . . . . 1 . . Retrieve Components 1 | . . . . . . . . . . . . 1 . . Scanalyzer 2 | . . . . . . . . . . 2 . . . . Insert Component 1 | . . . . . . . . . . 1 . . . . Analyze 1 | . . . . . . . . . . 1 . . . . Garrison Access Hacks 6 | . . . . 1 . . . . 1 2 . . 1 1 Seal Access 6 | . . . . 1 . . . . 1 2 . . 1 1 Unauthorized Hacks 5 | . . . . . . . . . 2 . . 2 1 . Terminals 5 | . . . . . . . . . 2 . . 2 1 . Assimilate 5 | . . . . . . . . . 2 . . 2 1 . Fabricators . | . . . . . . . . . . . . . . . Repair Stations . | . . . . . . . . . . . . . . . Recycling Units . | . . . . . . . . . . . . . . . Scanalyzers . | . . . . . . . . . . . . . . . Garrison Access . | . . . . . . . . . . . . . . . Data Cores Recovered . | . . . . . . . . . . . . . . . Used . | . . . . . . . . . . . . . . . Hacking Detections 31 | . 2 . 1 2 2 2 . . 4 7 3 4 3 1 Full Trace Events 6 | . 2 . . . 1 . . . . 1 . . 1 1 Feedback Events . | . . . . . . . . . . . . . . . Feedback Blocked . | . . . . . . . . . . . . . . . Robot Schematics Acquired . | . . . . . . . . . . . . . . . Robots Built . | . . . . . . . . . . . . . . . Authchips . | . . . . . . . . . . . . . . . Time 208 | . . . . . 134 . . . . . . . . 74 Total Robot Build Rating . | . . . . . . . . . . . . . . . Part Schematics Acquired 1 | . . . . . . . . . . 1 . . . . Parts Built 5 | . . . . . . 1 . . . 2 . . 2 . Authchips . | . . . . . . . . . . . . . . . Time 117 | . . . . . . 47 . . . 42 . . 28 . Total Part Build Rating 21 | . . . . . . 5 . . . 8 . . 8 . Parts Repaired 1 | . . . . . . . . . . 1 . . . . Time 44 | . . . . . . . . . . 44 . . . . Parts Recycled . | . . . . . . . . . . . . . . . Recycled Matter . | . . . . . . . . . . . . . . . Retrieved Matter . | . . . . . . . . . . . . . . . Retrieved Components 2 | . . . . . . . . . . . . 2 . . Parts Scanalyzed 1 | . . . . . . . . . . 1 . . . . Part Schematics Acquired 1 | . . . . . . . . . . 1 . . . . Parts Damaged . | . . . . . . . . . . . . . . . Bothacking | -11 -10 -9 -9 -8 -7 -6 -6 -6 -5 -4 -4 -3 -2 -1 ------------ Run | Scr Mat Mat Min Mat Fac Fac Low Low Fac Fac Ext Res Res Acc Used RIF Installer . | . . . . . . . . . . . . . . . Robots Hacked . | . . . . . . . . . . . . . . . Non-combat . | . . . . . . . . . . . . . . . Combat . | . . . . . . . . . . . . . . . Robot Hacks Applied . | . . . . . . . . . . . . . . . Relay Couplers Released . | . . . . . . . . . . . . . . . Fabnet Peak Effective % . | . . . . . . . . . . . . . . . Robots Rewired 23 | . . . . . . . . . . . 23 . . . Allies Hacked . | . . . . . . . . . . . . . . . Hacks Repelled . | . . . . . . . . . . . . . . . Allies | -11 -10 -9 -9 -8 -7 -6 -6 -6 -5 -4 -4 -3 -2 -1 -------- Run | Scr Mat Mat Min Mat Fac Fac Low Low Fac Fac Ext Res Res Acc Total Allies 34 | . . . . . . . . . 1 . 31 2 . . Largest Group 21 | . . . . . . . . . 1 . 21 18 . . Highest-Rated Group 1006 | . . . . . . . . . 10 . 1006 868 . . Highest-Rated Ally 159 | . . . . . . . . . 10 . 159 159 . . Total Orders . | . . . . . . . . . . . . . . . Ally Attacks 188 | . . . . . . . . . . . 172 16 . . Total Damage 5440 | . . . . . . . . . . . 5149 291 . . Kills 32 | . . . . . . . . . . . 29 3 . . Allies Corrupted 1 | . . . . . . . . . . . . 1 . . Allies Melted . | . . . . . . . . . . . . . . . Intel | -11 -10 -9 -9 -8 -7 -6 -6 -6 -5 -4 -4 -3 -2 -1 ------- Run | Scr Mat Mat Min Mat Fac Fac Low Low Fac Fac Ext Res Res Acc Robot Analysis Total . | . . . . . . . . . . . . . . . Derelict Logs Recovered 1 | . . . . . . . 1 . . . . . . . Drone Launches . | . . . . . . . . . . . . . . . Drone Recoveries . | . . . . . . . . . . . . . . . Exploration | -11 -10 -9 -9 -8 -7 -6 -6 -6 -5 -4 -4 -3 -2 -1 ------------- Run | Scr Mat Mat Min Mat Fac Fac Low Low Fac Fac Ext Res Res Acc Turns Passed 3565 | 18 58 63 47 137 483 147 692 56 191 357 573 261 191 291 Spaces Moved 6639 | 31 116 124 105 437 477 221 899 213 561 948 1062 678 326 441 Core 165 | 31 116 4 . . . . . . . . 13 . . 1 Treads . | . . . . . . . . . . . . . . . Legs . | . . . . . . . . . . . . . . . Wheels . | . . . . . . . . . . . . . . . Hover 662 | . . 120 105 47 . . . . . . . . . 390 Flight 5812 | . . . . 390 477 221 899 213 561 948 1049 678 326 50 Fastest Speed 23 | 50 50 42 42 26 23 23 23 26 24 25 27 28 29 40 Average Speed 31 | 50 50 42 42 27 24 23 28 26 25 25 32 31 33 58 Slowest Speed 107 | 50 50 50 42 42 26 23 32 26 105 29 107 34 40 70 Overloaded Moves . | . . . . . . . . . . . . . . . Propulsion Burnouts . | . . . . . . . . . . . . . . . Robots Hopped 100 | . . . . 17 8 6 . . 14 7 15 16 16 1 Cave-ins Triggered . | . . . . . . . . . . . . . . . Exploration Rate (%) 28 | 4 33 26 27 35 17 10 85 22 16 23 84 19 14 17 Regions Visited 14 Branch Regions 4 Pre-discovered Areas . | . . . . . . . . . . . . . . . Known Exits Taken 7 | . . . . 1 1 . . 1 1 . 1 1 1 . Unknown Exits Taken 7 | 1 1 1 1 . . 1 1 . . 1 . . . . Scrap Searched 2 | . . . . . . . 2 . . . . . . . Spaces Dug . | . . . . . . . . . . . . . . . Terrain Destroyed . | . . . . . . . . . . . . . . . Melee . | . . . . . . . . . . . . . . . Projectile . | . . . . . . . . . . . . . . . AOE . | . . . . . . . . . . . . . . . Terrain Rammed . | . . . . . . . . . . . . . . . Walls Destroyed . | . . . . . . . . . . . . . . . Machines Disabled . | . . . . . . . . . . . . . . . Actions | -11 -10 -9 -9 -8 -7 -6 -6 -6 -5 -4 -4 -3 -2 -1 --------- Run | Scr Mat Mat Min Mat Fac Fac Low Low Fac Fac Ext Res Res Acc Total 8007 | 32 115 132 107 433 832 309 1331 212 597 1063 1274 711 390 469 Wait 1110 | . . . 3 . 351 85 421 . 20 93 60 17 54 6 Move 6439 | 30 115 123 104 408 460 208 898 212 533 933 1032 648 296 439 Hop 86 | . . . . 11 8 6 . . 13 7 14 13 13 1 Pick Up 52 | 2 . 4 . 1 5 3 5 . 7 7 4 9 3 2 Fast Attach 37 | . . 4 . 8 1 . . . 3 4 2 2 2 11 Attach 33 | . . . . . 2 4 2 . 5 3 3 5 3 6 Detach 5 | . . . . . . . . . 2 . 2 . . 1 Swap 16 | . . . . . 2 2 1 . 4 5 2 . . . Drop 55 | . . 1 . 5 3 1 4 . 10 11 7 10 1 2 Fire . | . . . . . . . . . . . . . . . Melee . | . . . . . . . . . . . . . . . Ram 1 | . . . . . . . . . . . . . . 1 Kick . | . . . . . . . . . . . . . . . Crush . | . . . . . . . . . . . . . . . Escape Stasis 92 | . . . . . . . . . . . 67 7 18 . Rewire 81 | . . . . . . . . . . . 81 . . . Trap . | . . . . . . . . . . . . . . . Miscellaneous . | . . . . . . . . . . . . . . . Route ------- -11/Scrapyard -10/Materials -9/Materials -9/Mines -8/Materials (discovered 3 exits: *Fac x3) -7/Factory (discovered 4 exits: *Fac x4) -6/Factory -6/Lower Caves -6/Lower Caves -5/Factory (discovered 5 exits: *Fac x4 / Upp) -4/Factory (discovered 5 exits: Res x4 / *Ext) -4/Extension (discovered 3 exits: *Res x2 / *Cet) -3/Research (discovered 6 exits: *Res x3 / Arm / *Tes x2) -2/Research (discovered 5 exits: *Acc x3 / Qua x2) -1/Access History --------- Turn | Location | Event 5 | -11/Scrapyard | Discovered new exit (range 16) 19 | -11/Scrapyard | Entered Materials 76 | -10/Materials | Discovered new exit (range 3) 77 | -10/Materials | Entered another Materials area 77 | -9/Materials | Evolved 2 slots: Propulsion x1, Utility x1 134 | -9/Materials | Discovered new exit (range 16) 140 | -9/Materials | Entered Mines 179 | -9/Mines | Discovered new exit (range 5) 185 | -9/Mines | Met a Derelict bent on vengeance 187 | -9/Mines | Entered Materials 187 | -8/Materials | Evolved 2 slots: Propulsion x1, Utility x1 278 | -8/Materials | Identified exit to Factory 324 | -8/Materials | Entered Factory 324 | -7/Factory | Evolved 2 slots: Power x1, Propulsion x1 621 | -7/Factory | Build established: Scout 757 | -7/Factory | Identified exit to Factory 807 | -7/Factory | Entered another Factory area 807 | -6/Factory | Evolved 2 slots: Utility x2 889 | -6/Factory | Fabricated Imp. Hacking Suite (x1) 931 | -6/Factory | Discovered new exit (range 17) 954 | -6/Factory | Entered Lower Caves 998 | -6/Lower Caves | Learned location of 1 exit from Factory 998 | -6/Lower Caves | Learned location of 1 exit from Research 1168 | -6/Lower Caves | Acquired the password to a Derelict Tinkerer's latest research 1176 | -6/Lower Caves | Encountered a Warlord checkpoint 1193 | -6/Lower Caves | Build established: Hacker-Scout 1487 | -6/Lower Caves | Attracted the attention of an 0b10 checkpoint 1643 | -6/Lower Caves | Learned Factory stockpile data 1643 | -6/Lower Caves | Discovered new exit (range 12) 1646 | -6/Lower Caves | Entered another Lower Caves area 1647 | -6/Lower Caves | Identified exit to Factory 1654 | -6/Lower Caves | Learned Factory trap positions 1702 | -6/Lower Caves | Entered Factory 1702 | -5/Factory | Evolved 2 slots: Power x1, Utility x1 1703 | -5/Factory | Identified exit to Factory 1704 | -5/Factory | Identified exit to Upper Caves 1705 | -5/Factory | Loaded intel: 124 trap records 1746 | -5/Factory | Build established: Hacker-Sprinter 1893 | -5/Factory | Entered another Factory area 1893 | -4/Factory | Evolved 2 slots: Utility x2 1894 | -4/Factory | Identified exit to Research 2103 | -4/Factory | Repaired Imp. Deuterium Engine 2192 | -4/Factory | Discovered new exit (range 17) 2236 | -4/Factory | Fabricated Xenon Bombardment Thruster (x2) 2250 | -4/Factory | Entered Extension 2273 | -4/Extension | Spotted B-86 Titan 2320 | -4/Extension | Rescued a captive Derelict 2343 | -4/Extension | Rescued a captive Derelict 2344 | -4/Extension | Rescued a captive Derelict 2401 | -4/Extension | Energy Cycler disabled 2401 | -4/Extension | Rescued a captive Derelict 2401 | -4/Extension | Rescued a captive Derelict 2401 | -4/Extension | Rescued a captive Derelict 2403 | -4/Extension | Rescued a captive Derelict 2403 | -4/Extension | Rescued a captive Derelict 2404 | -4/Extension | Rescued a captive Derelict 2404 | -4/Extension | Rescued a captive Derelict 2467 | -4/Extension | Spotted B-86 Titan 2522 | -4/Extension | Rescued A7 2663 | -4/Extension | Identified exit to Cetus 2823 | -4/Extension | Entered Research 2823 | -3/Research | Accompanied by 18 allies (A7) 2823 | -3/Research | Evolved 2 slots: Propulsion x1, Utility x1 2824 | -3/Research | Identified exit to Research 2935 | -3/Research | Discovered new exit (range 10) 2979 | -3/Research | Identified exit to Armory 2979 | -3/Research | Identified exit to Testing 3072 | -3/Research | Spotted B-86 Titan 3084 | -3/Research | Entered another Research area 3084 | -2/Research | Evolved 2 slots: Utility x2 3094 | -2/Research | Identified exit to Access 3094 | -2/Research | Identified exit to Quarantine 3246 | -2/Research | Fabricated Xenon Bombardment Thruster? 3275 | -2/Research | Entered Access 3275 | -1/Access | Evolved 2 slots: Utility x2 3303 | -1/Access | Lost 4 parts (3n1u) 3376 | -1/Access | Build established: Wizard-Mutant 3443 | -1/Access | Spotted B-99 Colossus 3493 | -1/Access | System corruption reached 10% 3512 | -1/Access | Core integrity fell below 50% 3518 | -1/Access | Lost 17 parts (4p4n9u) 3550 | -1/Access | Spotted B-99 Colossus 3551 | -1/Access | Spotted B-99 Colossus 3563 | -1/Access | Core integrity fell below 20% 3566 | -1/Access | Destroyed by P-80 Master with Gamma Rifle Last Messages --------------- 03561_ Penetrated by Slug. 03562_ Slug penetrates Wall. 03562_ Slug penetrates K-01 Serf. 03562_ Imp. Gyrokinetic Inverter destroyed. 03562_ Penetrated by Slug. 03562_ Imp. Hacking Suite destroyed. 03562_ Slug penetrates P-80 Master. 03562_ Slug penetrates Wall. 03562_ Penetrated by Slug. 03562_ Imp. Gyrokinetic Inverter destroyed. 03562_ Slug penetrates P-80 Master. 03565_ Knocked back. 03565_ Slug penetrates Wall. 03565_ Penetrated by Slug. 03565_ Imp. Gyrokinetic Inverter destroyed. 03565_ Slug penetrates Wall. 03565_ Penetrated by Slug. 03565_ Slug penetrates Wall. [Achievement: This Is Interesting...] [Achievement: Achiever] Map ----- +----------------------------------------------------+ | ?????????????????????????????????????????????????? | | ?????????????????????????????????????????????????? | | ?????????????????????????????????????????????????? | | ????????????????????????????????? ????????????? | | ????????????????????????????????# ????????????? | | ????????????????????????????????# ????????????# | | ????????????????????????????????# ????????????# | | ????????????????????????????????# #??????????## | | ???????????????????????????????## #??????????# | | ???????????????????????????????? #??????????# | | ????????????????????????????????# #?????????## | | ????????????????????????????????# #?????????# | | ????????????????????????????????# #?????????# | | ????????????????????????????????# #?????????# | | ????????????????????????????????# #???????????# | | ????????????????????????????????# ###+######### | | ????????????????????????????????# | | ????????????????????????????????# | | ????????????????????????????????# | | ???????????????######???????????# | | ???????????????" ??????????# ###+###### | | ???????????????" BB ?????????# # ????# | | ???????????????" BB #########; # ????# | | ???????????????" % % # ???# | | ???????????????" p # /???# | | ???????????????" @ pp #! ??# | | ???????????????" % %p # ??# | | ???????????????" BB ;###;#####+########/##?# | | ???????????????" BB #???# #? #??# | | ???????????????" ????# #? #??# | | ???????????????#######?????# """""#? #??# | | ???????????????????????????# """""#? #??# | | ???????????????????????????# """""#? #??# | | ???????????????????????????# """""#??#??# | | ???????????????????????????# """""??????# | | ???????????????????????????# ??????# | | ???????????????????????????# #?????# | | ???????????????????????????# #?????? | | ???????????????????????????# #?????? | | ???????????????????????????# #????????? | | ???????????????????????????##############????????? | | ?????????????????????????????????????????????????? | | ?????????????????????????????????????????????????? | | ?????????????????????????????????????????????????? | | ?????????????????????????????????????????????????? | | ?????????????????????????????????????????????????? | | ?????????????????????????????????????????????????? | | ?????????????????????????????????????????????????? | | ?????????????????????????????????????????????????? | | ?????????????????????????????????????????????????? | +----------------------------------------------------+ Best States ------------- Heat Dissipation 71 Energy Generation 83 Energy Capacity 1300 Matter Stores 300 Matter Capacity 300 Sight Range 18 Robot Scan Range 15 Terrain Scan Range 16 Terrain Scan Density 110 ECM Strength 1 Cloak Strength 3 Power Amplification 60 Additional Mass Support 9 Armor Coverage 150 Point Defense Rating 160 Evasion (%) 65 Offensive Hacking 54 Defensive Hacking 22 Item Schematics ----------------- Xenon Bombardment Thruster | -4/Factory | Scanalyzed Robot Schematics ------------------ None Fabricated ------------ Imp. Hacking Suite | x1 | -6/Factory | Preloaded Xenon Bombardment Thruster | x2 | -4/Factory Xenon Bombardment Thruster | x2 | -2/Research Alien Tech Used ----------------- None Achievements -------------- Achiever Can't Catch Me Denied? More Power To You Omniscient Cartographer Prison Break This Is Interesting... root@ Challenges ------------ None Game ------ Seed FlightNodeInsulator Manual? 0 Play Time 01:14:17 Cumulative 22.1 hours Start 2022.07.08 @ 14:58:03 End 2022.07.08 @ 16:10:18 Sessions 1 Manual Loads 0 Difficulty Rogue Special Mode None Game No. 31 Rogue 31 Adventurer 0 Explorer 0 Win Type - Total 0 Types 0/0/0/0/0/0/0/0/0 Lore% 25 Gallery% 34 Achievement% 27 Wizard Run 0 Options --------- ASCII 0 Keyboard 0 Movement Numpad Keybinds 0 Fullscreen 0 Font 16/Terminus Map View 76x50 Tactical HUD 1 Map Filters NONE Filters NONE Steam 1 RUN: fecc19be-74b9-4f47-97f0-f944f77ef892